[Event "XX Gran Hotel Bali-A 2023"]
[Site "Benidorm"]
[Date "2023.12.02"]
[Round "1.6"]
[White "Halmeenmaki, Tuomo"]
[Black "Moskalenko, Viktor"]
[Result "0-1"]
[ECO "A41"]
[WhiteElo "2101"]
[BlackElo "2427"]
[Annotator "TA"]
[PlyCount "176"]
[EventDate "2023.12.02"]
[EventType "swiss"]
[EventCountry "ESP"]
[SourceTitle "playchess.com"]
[Source "ChessBase"]
[SourceQuality "1"]
[TimeControl "5400+30"]

{[%evp 18,176,40,33,47,35,45,35,31,22,37,0,22,16,7,0,0,-18,-18,-28,-18,-18,-18,-16,-15,-17,-13,-20,-20,-22,-21,-22,-20,-12,0,-8,0,0,-7,-5,-8,-7,-7,-5,-10,0,-6,-7,-14,-19,-19,-20,-20,-20,-20,-64,-64,-64,-39,-70,-64,-64,-39,-67,-14,-12,-7,-61,-61,-77,-73,-77,-62,-84,-61,-81,-79,-116,-125,-185,-109,-260,-248,-260,-260,-204,-77,-117,-117,-168,0,-8,0,-316,-693,-339,-751,-917,-910,-879,-768,-868,-790,-1392,-1340,-1205,-878,-1324,-1340,-1074,-1050,-2167,-2167,-1976,-2001,-1758,-1498,-1497,-1385,-1303,-1267,-577,0,-2,0,-6267,0,0,0,0,0,0,0,0,-8,-29969,-29970,-29969,-29971,-29971,-29972,-29972,-29973,-29973,-29973,-29973,-29974,-29974,-29975,-29974,-29976,-29976,-29977,-29977,-29978,-29978,-29979,-29979,-29980,-29978,-29979]} 1. d4 {[%emt 0:00:05]} g6 {[%emt 0:00:32]} 2. c4 {[%emt 0:00:24]} Bg7 {[%emt 0:00:07]} 3. Nf3 {[%emt 0:00:54]} d6 {[%emt 0:00:23]} 4. e4 {[%emt 0:03:09]} Bg4 {[%emt 0:06:06]} 5. Be2 {[%emt 0:01:46]} Nc6 {[%emt 0:01:45]} 6. Be3 {[%emt 0:01:35]} e5 {[%emt 0:04:30]} 7. d5 {[%emt 0:02:42]} Bxf3 {[%emt 0:02:24]} 8. Bxf3 {[%emt 0:00:39]} Nd4 {[%emt 0:00:20]} 9. Nc3 {[%emt 0:06:27]} Ne7 {[%emt 0:13:11]} 10. O-O {[%emt 0:04:19]} O-O {[%emt 0:04:27] 10...c5 is vanishing. A41: 1 d4 d6: Tartakower System and Modern Defence.} 11. Rb1 {[%emt 0:04:47]} c6 {[%emt 0:18:35]} 12. dxc6 {[%emt 0:03:42]} bxc6 {[%emt 0:06:11] White is slightly better.} 13. b4 {[%emt 0:02:13]} Rc8 {[%emt 0:05:24]} 14. a4 {[%emt 0:12:38] [#]} a5 $146 {[%emt 0:03:20]} ({Predecessor:} 14... f5 15. Bxd4 exd4 16. Ne2 fxe4 17. Bxe4 d5 18. cxd5 cxd5 19. Qb3 Kh8 20. Bf3 Qd6 {0-1 Metras-Baratz,A FRA Cup sf 08th 1953}) 15. b5 {[%emt 0:11:27]} cxb5 {[%emt 0:00:25]} 16. Nxb5 {[%emt 0:01:26]} Rxc4 {[%emt 0:01:05]} 17. Bxd4 {[%emt 0:01:00]} (17. Nxd4 $5 exd4 18. Be2 $11) 17... exd4 {[%emt 0:00:14]} 18. Be2 {[%emt 0:00:52]} Rc8 {[%emt 0:10:15]} 19. Nxd4 {[%emt 0:01:07]} d5 {[%emt 0:00:06]} 20. exd5 {[%emt 0:02:04]} Nxd5 {[%emt 0:00:44][%cal Be7d5,Bd5f4,Bf4d3][%mdl 32]} 21. Nb5 {[%emt 0:00:54]} Nf4 {[%emt 0:05:04]} (21... Qg5 {feels hotter.} 22. Qb3 Nf4 23. Bf3 Rfd8) 22. Bf3 {[%emt 0:03:54]} Qxd1 {[%emt 0:03:49]} (22... Qg5 {keeps more tension.} 23. g3 Rfd8 24. Qe1 Nd3) 23. Bxd1 {[%emt 0:05:01]} Rfd8 {[%emt 0:02:33]} 24. Bb3 {[%emt 0:02:19]} Nd3 {[%emt 0:02:26]} 25. Rfd1 {[%emt 0:02:07] White is weak on the dark squares} Rd7 {[%emt 0:04:04]} 26. Kf1 {[%emt 0:01:56]} Rcd8 {[%emt 0:00:23]} 27. g3 {[%emt 0:04:45]} Bf8 {[%emt 0:01:31]} 28. Bc2 {[%emt 0:05:23]} Bc5 {[%emt 0:00:39]} 29. Bxd3 {[%emt 0:00:33]} Rxd3 {[%emt 0:00:02]} 30. Rxd3 {[%emt 0:00:27]} Rxd3 $11 {[%emt 0:00:01][%mdl 4096] Endgame KRB-KRN} 31. Ke2 {[%emt 0:00:19] Wards off Rd2+} Rd7 {[%emt 0:00:50]} 32. Rc1 {[%emt 0:01:39]} Bb4 {[%emt 0:00:31]} 33. Rc2 {[%emt 0:00:17] Dodges Rd2+} Kg7 {[%emt 0:00:18]} 34. h4 {[%emt 0:01:16]} Re7+ {[%emt 0:00:31]} 35. Kf3 {[%emt 0:02:26]} Re1 {[%emt 0:00:06]} 36. Nc3 {[%emt 0:03:28]} Ra1 {[%emt 0:00:52] ...Ra3 is the strong threat. Black is more active.} 37. Na2 {[%emt 0:00:08]} Be7 {[%emt 0:00:26]} 38. Re2 {[%emt 0:04:16]} Bf6 {[%emt 0:00:20]} 39. Rc2 {[%emt 0:00:17]} Rd1 {[%emt 0:00:44]} 40. Rc4 {[%emt 0:00:55]} Bb2 {[%emt 0:01:01]} (40... Rd3+ $15 41. Kg2 Ra3) 41. Rc2 $1 {[%emt 0:00:56]} Rd3+ {[%emt 0:00:49]} 42. Ke2 {[%emt 0:00:38]} (42. Ke4 $11 Rb3 43. Kd5) 42... Rb3 $15 {[%emt 0:00:03]} 43. Nc1 {[%emt 0:01:07]} Bxc1 {[%emt 0:00:34]} 44. Rxc1 $17 {[%emt 0:00:01] KR-KR} Rb4 {[%emt 0:00:01]} 45. Ra1 {[%emt 0:01:11]} Kf6 {[%emt 0:00:11]} 46. Ra3 {[%emt 0:00:17]} h5 {[%emt 0:00:49]} 47. Rc3 {[%emt 0:03:05]} Rxa4 {[%emt 0:00:09]} 48. Rc5 {[%emt 0:00:05]} (48. Rc7 $17) 48... Ra3 {[%emt 0:00:47]} (48... Ra1 $19 {White must now prevent ...a4.} 49. Kd3 a4) 49. Rb5 $2 {[%emt 0:00:03]} (49. f3 $17 {was called for.}) 49... a4 $19 {[%emt 0:01:20][%cal Ba5a4,Ba4a3,Ba3a2][%mdl 32]} 50. Ra5 {[%emt 0:00:05]} Ra1 {[%emt 0:00:03]} 51. Kf3 {[%emt 0:00:40]} a3 {[%emt 0:00:10]} 52. Kf4 {[%emt 0:00:42]} Ra2 {[%emt 0:00:46]} 53. Ra6+ {[%emt 0:00:13]} (53. Kf3 $17) 53... Ke7 $2 {[%emt 0:00:39]} (53... Kg7 $19 54. Ke4 Ra1) 54. f3 {[%emt 0:00:29]} Ra1 {[%emt 0:01:11]} 55. Ke5 {[%emt 0:01:23][%mdl 8192] [#]} (55. Kg5 $1 $11 {and White stays safe.}) 55... f6+ $1 {[%emt 0:02:32][%mdl 512]} 56. Kf4 {[%emt 0:00:35]} (56. Ke4 a2) 56... a2 {[%emt 0:00:07]} 57. Ra3 {[%emt 0:01:07]} Ke6 {[%emt 0:00:24]} 58. Ra5 {[%emt 0:00:35]} Kd6 {[%emt 0:01:37]} 59. Ra3 {[%emt 0:00:28]} Kc5 {[%emt 0:00:17]} 60. Ra8 {[%emt 0:00:13]} Kb4 {[%emt 0:00:34]} 61. Rb8+ {[%emt 0:00:11]} Kc3 {[%emt 0:00:11]} 62. Rc8+ {[%emt 0:00:09]} Kd3 {[%emt 0:00:42]} 63. Rd8+ {[%emt 0:00:30]} Ke2 {[%emt 0:00:02]} 64. Re8+ {[%emt 0:01:35]} Kf2 {[%emt 0:00:08]} 65. Ra8 {[%emt 0:00:25]} Kg2 {[%emt 0:01:01]} 66. Ra3 {[%emt 0:00:28]} Kh3 {[%emt 0:01:00]} 67. Ra8 {[%emt 0:00:40]} Rg1 {[%emt 0:00:48]} 68. Rxa2 {[%emt 0:00:02]} Rxg3 {[%emt 0:00:05]} 69. Ra6 {[%emt 0:00:50]} f5 $2 {[%emt 0:00:53]} (69... Kxh4 70. Rxf6 Kh3 71. Rb6 $19) (69... g5+ $19 70. hxg5 fxg5+ 71. Ke4 h4) 70. Ra1 $11 {[%emt 0:00:30]} Kxh4 {[%emt 0:00:13] Strongly threatening ...g5+.} 71. Rh1+ {[%emt 0:00:23]} Rh3 {[%emt 0:00:01]} 72. Rf1 $1 {[%emt 0:00:44]} g5+ {[%emt 0:01:21]} (72... Rh2 $5 73. Rg1 $8 g5+ 74. Rxg5 Rc2 75. Rxf5 Rc3 $11) 73. Kxf5 {[%emt 0:00:10]} Rh2 {[%emt 0:00:05] ( -> ...g4)} (73... g4 $5 74. Kf4 $8 Rh2 $11) 74. Rg1 {[%emt 0:00:50]} Rh3 {[%emt 0:00:37]} (74... Rc2 $5 75. Rh1+ $8 Kg3 76. Rxh5 Kxf3 77. Rxg5 Rh2 $11) 75. Rf1 {[%emt 0:00:26]} g4 {[%emt 0:00:48]} 76. fxg4 $2 {[%emt 0:00:24][%mdl 8192]} (76. Kf4 $11) 76... hxg4 {[%emt 0:00:07][%cal Bh5g4,Bg4g3,Bg3g2][%mdl 32] Black mates.} 77. Kf4 {[%emt 0:00:26] [#]} Rh2 $1 {[%emt 0:00:45]} 78. Ra1 {[%emt 0:00:33]} Rf2+ {[%emt 0:00:13]} 79. Ke3 {[%emt 0:00:01]} g3 {[%emt 0:00:46]} 80. Ra8 {[%emt 0:01:11]} Rf7 {[%emt 0:00:19]} 81. Rh8+ {[%emt 0:00:07]} Kg4 {[%emt 0:00:06]} 82. Ke2 {[%emt 0:00:33]} g2 {[%emt 0:00:30]} 83. Rg8+ {[%emt 0:00:51]} Kh3 {[%emt 0:00:10]} 84. Rh8+ {[%emt 0:00:02]} Kg3 {[%emt 0:00:08]} 85. Rg8+ {[%emt 0:00:05]} Kh2 {[%emt 0:00:05]} 86. Rh8+ {[%emt 0:00:03]} Kg1 {[%emt 0:00:05]} 87. Ke1 {[%emt 0:00:24]} Re7+ {[%emt 0:00:10]} 88. Kd2 {[%emt 0:00:06]} Re5 {[%emt 0:00:22] Weighted Error Value: White=0.37/Black=0.11 (very precise)} 0-1

[Event "XX Gran Hotel Bali-A 2023"]
[Site "Benidorm"]
[Date "2023.12.02"]
[Round "1.7"]
[White "Ilinca, Felix-Antonio"]
[Black "Kovacs, Zoltan"]
[Result "1-0"]
[ECO "A25"]
[WhiteElo "2395"]
[BlackElo "2146"]
[Annotator "TA"]
[PlyCount "31"]
[EventDate "2023.12.02"]
[EventType "swiss"]
[EventCountry "ESP"]
[SourceTitle "playchess.com"]
[Source "ChessBase"]
[SourceQuality "1"]
[TimeControl "5400+30"]

{[%evp 9,31,19,26,30,108,110,117,112,120,105,126,125,133,126,127,123,138,126,148,118,135,160,251,243]} 1. c4 {[%emt 0:00:20]} e5 {[%emt 0:00:31]} 2. Nc3 {[%emt 0:00:23]} Nc6 {[%emt 0:00:10]} 3. Nf3 {[%emt 0:00:46]} f5 {[%emt 0:00:28]} 4. g3 {[%emt 0:01:35]} Nf6 {[%emt 0:00:13]} 5. Bg2 {[%emt 0:00:43]} Bc5 {[%emt 0:08:58]} 6. Nxe5 {[%emt 0:04:24][%mdl 64] [#] aiming for Nd3. Remove Defender, Deflection. A25: English Opening vs King's Indian with ...Nc6 but without early d3.} Nxe5 {[%emt 0:01:15]} (6... Bxf2+ $11 {keeps the balance.} 7. Kxf2 Nxe5) 7. d4 $16 {[%emt 0:00:26]} Bxd4 {[%emt 0:00:18]} 8. Qxd4 {[%emt 0:00:08] White is better.} d6 {[%emt 0:00:26]} 9. O-O {[%emt 0:01:22]} O-O {[%emt 0:00:37] [#]} 10. c5 $146 {[%emt 0:03:56]} ({Predecessor:} 10. b3 Qe7 11. Bg5 c6 12. Rad1 Rd8 13. e4 h6 14. f4 c5 15. Bxf6 gxf6 16. Nd5 {1-0 Volodin,K (1905)-Shabunin,D (1739) Voronezh Rating op 06 2014 (2)}) 10... Nf7 {[%emt 0:01:35]} 11. Rd1 {[%emt 0:02:11] White is much more active. The black rooks are badly placed.} Qe7 {[%emt 0:00:35]} 12. cxd6 {[%emt 0:01:52]} Nxd6 {[%emt 0:02:15]} 13. Bg5 {[%emt 0:01:43] Black must now prevent Nd5.} Be6 {[%emt 0:00:38]} 14. Rac1 {[%emt 0:03:00]} Kh8 {[%emt 0:02:47]} 15. Qc5 {[%emt 0:04:58]} Rf7 {[%emt 0:04:12]} (15... Rfe8 $16 16. Bf4 Qf7) 16. Nd5 {[%emt 1:10:43] Black got outplayed after the opening.   Weighted Error Value: White=0.07 (flawless) /Black=0.22 (precise)} 1-0

[Event "XX Gran Hotel Bali-A 2023"]
[Site "Benidorm"]
[Date "2023.12.02"]
[Round "1.8"]
[White "Leiros Vila, Avelino"]
[Black "Decuigniere, Tom"]
[Result "0-1"]
[ECO "B10"]
[WhiteElo "2057"]
[BlackElo "2408"]
[Annotator "TA"]
[PlyCount "38"]
[EventDate "2023.12.02"]
[EventType "swiss"]
[EventCountry "ESP"]
[SourceTitle "playchess.com"]
[Source "ChessBase"]
[SourceQuality "1"]
[TimeControl "5400+30"]

{[%evp 10,38,12,2,6,-17,-14,-27,0,0,0,-35,-35,-44,-50,-99,-95,-150,-94,-140,-131,-137,-127,-119,-111,-119,-120,-120,-100,-540,-539]} 1. e4 {[%emt 0:00:11]} c6 {[%emt 0:00:57]} 2. d3 {[%emt 0:02:07]} d5 {[%emt 0:00:37]} 3. Nd2 {[%emt 0:00:38]} e5 {[%emt 0:01:37]} 4. Ngf3 {[%emt 0:00:32]} Bd6 {[%emt 0:01:10]} 5. d4 {[%emt 0:01:17]} exd4 {[%emt 0:01:46]} 6. exd5 {[%emt 0:00:41]} Nf6 {[%emt 0:01:02] B10: Caro-Kann: 2 d3 and 2 c4.} 7. Nxd4 {[%emt 0:04:57]} Nxd5 {[%emt 0:04:41]} 8. Nc4 $1 {[%emt 0:08:47]} Bb4+ {[%emt 0:06:00][%cal Bd6b4,Bb4c5,Bc5e7][%mdl 32] Black has an edge.} 9. Bd2 $1 {[%emt 0:01:23]} O-O {[%emt 0:01:35] [#] Strongly threatening ...Re8+.} 10. c3 $146 {[%emt 0:07:15]} ({Predecessor:} 10. Be2 b5 11. Bxb4 Nxb4 12. Ne3 Nd5 13. Nxc6 Nxc6 14. Qxd5 Qxd5 15. Nxd5 Nd4 16. Bd3 {1-0 Gonzalez,R (2472)-Condori Aranya,E (2157) Bogota McGregor op 4th 2013 (7)}) 10... Bc5 {[%emt 0:04:39]} 11. Bd3 {[%emt 0:05:31]} Re8+ {[%emt 0:01:59]} 12. Kf1 {[%emt 0:00:28]} (12. Be2 $1 $15 {should be considered.}) 12... Nd7 $17 {[%emt 0:02:54]} 13. Qh5 {[%emt 0:04:18]} (13. Kg1 $142) 13... g6 {[%emt 0:10:25]} ({Better is} 13... N7f6 14. Qd1 b5) 14. Qg5 {[%emt 0:07:03] [#]} (14. Qf3 $142) 14... Be7 $1 $36 {[%emt 0:03:16][%mdl 2048] Black is really pushing.} 15. Qg3 {[%emt 0:05:00]} Nc5 {[%emt 0:01:43] Threatens to win with ...Bh4.} 16. Bc2 {[%emt 0:07:09]} Nf6 {[%emt 0:01:58]} 17. Re1 {[%emt 0:03:14] Prevents Nfe4} Qd5 {[%emt 0:05:43]} 18. b3 {[%emt 0:06:05]} Nfe4 {[%emt 0:01:05]} 19. Qf3 {[%emt 0:03:53][%mdl 8192] [#]} ({Wrong is} 19. Bxe4 $2 Nxe4 20. Qf4 Bf5 $19) (19. Qf4 $17 Nxd2+ 20. Qxd2) 19... Qxc4+ $3 {[%emt 0:01:38][%mdl 576] Remove Defender. White got outplayed after the opening.   Weighted Error Value: White=0.37/Black=0.10 (very precise)} 0-1

[Event "XX Gran Hotel Bali-A 2023"]
[Site "Benidorm"]
[Date "2023.12.02"]
[Round "1.9"]
[White "Trigo Urquijo, Sergio"]
[Black "Schaffert, Walter"]
[Result "1-0"]
[ECO "E71"]
[WhiteElo "2400"]
[BlackElo "2057"]
[Annotator "TA"]
[PlyCount "51"]
[EventDate "2023.12.02"]
[EventType "swiss"]
[EventCountry "ESP"]
[SourceTitle "playchess.com"]
[Source "ChessBase"]
[SourceQuality "1"]
[TimeControl "5400+30"]

{[%evp 13,51,39,41,45,54,45,96,60,62,63,101,99,106,100,143,5,8,-7,0,-8,34,30,254,268,254,240,404,287,313,310,312,304,525,524,502,460,537,491,686,695]} 1. d4 {[%emt 0:00:04]} Nf6 {[%emt 0:04:41]} 2. c4 {[%emt 0:00:20]} g6 {[%emt 0:00:50]} 3. Nc3 {[%emt 0:00:12]} Bg7 {[%emt 0:00:10]} 4. e4 {[%emt 0:00:26]} O-O {[%emt 0:00:07]} 5. Be3 {[%emt 0:01:38]} d6 {[%emt 0:00:11]} 6. h3 {[%emt 0:00:48]} e5 {[%emt 0:00:41]} 7. d5 {[%emt 0:00:26]} a5 {[%emt 0:00:34]} 8. g4 {[%emt 0:01:11] E71: King's Indian: 4 e4 d6 5 h3.} Na6 {[%emt 0:00:29]} 9. Qd2 {[%emt 0:00:58] [#]} Bd7 $146 {[%emt 0:03:40]} (9... Nc5 $14) ({Predecessor:} 9... Nc5 10. f3 h5 11. O-O-O Bd7 12. Bg5 Qe8 13. Kb1 Nh7 14. Bh4 f5 15. gxh5 g5 {½-½ Kollars,D (2635)-Nenezic,M (2525) Titled Tuesday intern op 22 Mar Late blitz 2022 (3)}) 10. Nge2 {[%emt 0:02:53] White is better.} c6 {[%emt 0:02:56]} 11. dxc6 {[%emt 0:09:09]} Bxc6 {[%emt 0:01:38]} 12. f3 {[%emt 0:00:19]} Nc7 {[%emt 0:05:05]} 13. O-O-O {[%emt 0:06:53]} Nfe8 {[%emt 0:03:08]} 14. c5 {[%emt 0:04:08] White is more active.} ({Better is} 14. Kb1 $16) 14... Ne6 $1 $11 {[%emt 0:03:57]} 15. cxd6 {[%emt 0:04:39]} b5 {[%emt 0:00:48]} 16. d7 $132 {[%emt 0:08:31][%mdl 2048] White puts up resistance} Nf6 {[%emt 0:05:02]} (16... N8c7 $5 {[%cal Rb5b4]}) 17. Qd6 {[%emt 0:01:05]} (17. g5 {simplifies} Nxd7 18. Kb1 b4 19. Nd5) 17... Qc7 {[%emt 0:19:27] A mistake that costs the game.} (17... Bxd7 $11 {and Black is okay.} 18. g5 (18. Qxe5 $2 {too greedy.} Nxg4 $19) 18... b4) 18. Qxc7 $18 {[%emt 0:05:33]} Nxc7 {[%emt 0:00:23] [#]} 19. Rd6 $1 {[%emt 0:01:50]} ({Weaker is} 19. Bb6 Ne6 $14) 19... Bb7 {[%emt 0:02:25]} (19... Bxd7 {keeps fighting.} 20. g5 Nce8) 20. Bb6 {[%emt 0:03:09]} Ne6 {[%emt 0:01:16]} 21. Ng3 {[%emt 0:02:35][%cal Be2g3,Bg3e4,Be4c5][%mdl 32]} ({Worse is} 21. Nxb5 Bh6+ 22. Kd1 Nxd7 $14) 21... b4 {[%emt 0:13:01]} 22. Nd5 {[%emt 0:02:51] Black is weak on the light squares} Nxd5 $2 {[%emt 0:11:57] [#]} (22... Rfd8 23. Bb5 Nxd5) 23. exd5 {[%emt 0:00:23] White is clearly winning.} Nd8 {[%emt 0:00:07]} 24. Ne4 {[%emt 0:02:29]} f6 {[%emt 0:06:47]} 25. Nc5 {[%emt 0:03:03]} f5 {[%emt 0:03:32]} 26. Bxd8 {[%emt 0:02:16][%mdl 64] Remove Defender.   Weighted Error Value: White=0.23 (precise) /Black=0.58} 1-0

[Event "XX Gran Hotel Bali-A 2023"]
[Site "Benidorm"]
[Date "2023.12.02"]
[Round "1.10"]
[White "Pedersen, Max Moe"]
[Black "Davtyan, David Arm."]
[Result "0-1"]
[ECO "D37"]
[WhiteElo "2047"]
[BlackElo "2362"]
[Annotator "RC"]
[PlyCount "38"]
[EventDate "2023.12.02"]
[EventType "swiss"]
[EventCountry "ESP"]
[SourceTitle "playchess.com"]
[Source "ChessBase"]
[SourceQuality "1"]
[TimeControl "5400+30"]

1. c4 {[%emt 0:00:30]} Nf6 {[%emt 0:01:08]} 2. d4 {[%emt 0:00:00]} e6 {[%emt 0:00:06]} 3. Nf3 {[%emt 0:00:03]} d5 {[%emt 0:00:05]} 4. Nc3 {[%emt 0:00:08]} Be7 {[%emt 0:00:12]} 5. Bf4 {[%emt 0:00:09]} dxc4 {[%emt 0:00:21]} 6. e3 {[%emt 0:06:06]} a6 {[%emt 0:00:06]} 7. Bxc4 {[%emt 0:00:58]} b5 {[%emt 0:01:08]} 8. Bd3 {[%emt 0:00:55]} Bb7 {[%emt 0:00:08]} 9. O-O {[%emt 0:06:50]} Nbd7 {[%emt 0:00:07]} 10. e4 {[%emt 0:08:11]} b4 {[%emt 0:02:51]} 11. Na4 {[%emt 0:05:20]} Nxe4 {[%emt 0:13:54]} 12. Qc2 {[%emt 0:00:09]} Nd6 {[%emt 0:00:26]} 13. Ne5 {[%emt 0:01:57]} Nb5 {[%emt 0:04:27]} 14. Nc5 {[%emt 0:04:51]} Bxc5 {[%emt 0:09:25]} 15. dxc5 {[%emt 0:00:19]} Nxe5 {[%emt 0:00:29]} 16. Bxb5+ {[%emt 0:01:23]} axb5 {[%emt 0:00:44]} 17. Rfd1 {[%emt 0:02:10]} Qf6 {[%emt 0:03:03]} 18. Qd2 {[%emt 0:07:09]} O-O {[%emt 0:00:56]} 19. Qxb4 {[%emt 0:03:22]} Ra4 {[%emt 0:05:45]} 0-1

[Event "XX Gran Hotel Bali-A 2023"]
[Site "Benidorm"]
[Date "2023.12.02"]
[Round "1.11"]
[White "Cruz Lledo, Pablo"]
[Black "Ramadugu Akshay"]
[Result "1/2-1/2"]
[ECO "D30"]
[WhiteElo "2368"]
[BlackElo "2051"]
[Annotator "RC"]
[PlyCount "46"]
[EventDate "2023.12.02"]
[EventType "swiss"]
[EventCountry "ESP"]
[SourceTitle "playchess.com"]
[Source "ChessBase"]
[SourceQuality "1"]
[TimeControl "5400+30"]

1. d4 {[%emt 0:00:04]} d5 {[%emt 0:00:02]} 2. c4 {[%emt 0:00:36]} c6 {[%emt 0:02:27]} 3. Nf3 {[%emt 0:00:07]} Nf6 {[%emt 0:00:27]} 4. e3 {[%emt 0:00:07]} e6 {[%emt 0:00:03]} 5. Nbd2 {[%emt 0:00:11]} Nbd7 {[%emt 0:02:07]} 6. Be2 {[%emt 0:00:08]} Bd6 {[%emt 0:00:51]} 7. Qc2 {[%emt 0:00:55]} O-O {[%emt 0:01:14]} 8. O-O {[%emt 0:00:07]} a5 {[%emt 0:03:19]} 9. e4 {[%emt 0:01:54]} dxe4 {[%emt 0:02:31]} 10. Nxe4 {[%emt 0:00:08]} Nxe4 {[%emt 0:00:59]} 11. Qxe4 {[%emt 0:00:11]} Nf6 {[%emt 0:01:56]} 12. Qh4 {[%emt 0:01:07]} Be7 {[%emt 0:02:06]} 13. Rd1 {[%emt 0:05:13]} Nd5 {[%emt 0:12:26]} 14. Qg3 {[%emt 0:01:15]} Bd6 {[%emt 0:01:05]} 15. Ne5 {[%emt 0:07:07]} Ne7 {[%emt 0:01:49]} 16. c5 {[%emt 0:09:18]} Bc7 {[%emt 0:05:08]} 17. Bf4 {[%emt 0:07:09]} Nd5 {[%emt 0:06:59]} 18. Bh6 {[%emt 0:05:41]} Qf6 {[%emt 0:01:25]} 19. Bg5 {[%emt 0:00:16]} Bxe5 {[%emt 0:01:57]} 20. dxe5 {[%emt 0:00:26]} Qg6 {[%emt 0:00:22]} 21. Rd4 {[%emt 0:08:38]} f5 {[%emt 0:13:41]} 22. exf6 {[%emt 0:01:53]} e5 {[%emt 0:12:43]} 23. fxg7 {[%emt 0:08:45]} Rf5 {[%emt 0:00:48]} 1/2-1/2

[Event "XX Gran Hotel Bali-A 2023"]
[Site "Benidorm"]
[Date "2023.12.02"]
[Round "1.12"]
[White "Stuer, Marc"]
[Black "Garcia Martin, Marta"]
[Result "0-1"]
[ECO "A43"]
[WhiteElo "2040"]
[BlackElo "2350"]
[Annotator "RC"]
[PlyCount "74"]
[EventDate "2023.12.02"]
[EventType "swiss"]
[EventCountry "ESP"]
[SourceTitle "playchess.com"]
[Source "ChessBase"]
[SourceQuality "1"]
[TimeControl "5400+30"]

1. d4 {[%emt 0:00:05]} Nf6 {[%emt 0:00:12]} 2. Nf3 {[%emt 0:00:07]} c5 {[%emt 0:00:23]} 3. d5 {[%emt 0:00:09]} b5 {[%emt 0:00:17]} 4. c3 {[%emt 0:00:23]} Bb7 {[%emt 0:10:29]} 5. e4 {[%emt 0:00:40]} c4 {[%emt 0:11:55]} 6. Nbd2 {[%emt 0:10:29]} e6 {[%emt 0:01:41]} 7. a4 {[%emt 0:16:00]} a6 {[%emt 0:28:21]} 8. axb5 {[%emt 0:12:58]} axb5 {[%emt 0:00:05]} 9. Rxa8 {[%emt 0:00:07]} Bxa8 {[%emt 0:00:04]} 10. b3 {[%emt 0:08:10]} exd5 {[%emt 0:03:15]} 11. e5 {[%emt 0:00:28]} Ng4 {[%emt 0:16:13]} 12. h3 {[%emt 0:01:43]} Nh6 {[%emt 0:00:03]} 13. Nd4 {[%emt 0:00:17]} b4 {[%emt 0:01:12]} 14. bxc4 {[%emt 0:01:55]} bxc3 {[%emt 0:00:07]} 15. N2f3 {[%emt 0:00:16]} Qa5 {[%emt 0:02:10]} 16. Qb3 {[%emt 0:05:33]} Na6 {[%emt 0:04:46]} 17. cxd5 {[%emt 0:05:50]} c2+ {[%emt 0:09:04]} 18. Nd2 {[%emt 0:02:03]} Bb4 {[%emt 0:04:24]} 19. Qxc2 {[%emt 0:02:15]} O-O {[%emt 0:00:41]} 20. Bb5 {[%emt 0:14:23]} Bc5 {[%emt 0:04:31]} 21. Bxa6 {[%emt 0:01:54]} Bxd4 {[%emt 0:00:05]} 22. Qc4 {[%emt 0:03:46]} Bxe5 {[%emt 0:00:44]} 23. Qb5 {[%emt 0:04:46]} Qxb5 {[%emt 0:01:18]} 24. Bxb5 {[%emt 0:00:13]} Bxd5 {[%emt 0:00:00]} 25. Bxd7 {[%emt 0:02:17]} Rd8 {[%emt 0:00:00]} 26. Bb5 {[%emt 0:01:51]} Bxg2 {[%emt 0:00:00]} 27. Rg1 {[%emt 0:00:13]} Bxh3 {[%emt 0:00:04]} 28. Nc4 {[%emt 0:01:38]} Bc3+ {[%emt 0:00:17]} 29. Ke2 {[%emt 0:01:29]} Nf5 {[%emt 0:00:20]} 30. Be3 {[%emt 0:01:14]} Nxe3 {[%emt 0:00:15]} 31. fxe3 {[%emt 0:01:29]} h5 {[%emt 0:01:47]} 32. Rc1 {[%emt 0:01:02]} Bf6 {[%emt 0:00:15]} 33. Nd2 {[%emt 0:00:35]} Bg4+ {[%emt 0:00:21]} 34. Nf3 {[%emt 0:00:03]} Rb8 {[%emt 0:00:26]} 35. Rc5 {[%emt 0:00:28]} Be7 {[%emt 0:00:28]} 36. Rd5 {[%emt 0:00:22]} Be6 {[%emt 0:00:46]} 37. Rxh5 {[%emt 0:01:07]} Rxb5 {[%emt 0:00:21]} 0-1